[Event "29th Bosnjaci Open 2025"]
[Site "Bosnjaci"]
[Date "2025.01.07"]
[Round "7.5"]
[White "Zadravec, Matija"]
[Black "Fercec, Nenad"]
[Result "1-0"]
[ECO "B35"]
[WhiteElo "2283"]
[BlackElo "2382"]
[Annotator "TA"]
[PlyCount "49"]
[EventDate "2025.01.04"]
[EventType "swiss"]
[EventCountry "CRO"]
[SourceTitle "playchess.com"]
[Source "ChessBase"]
[SourceQuality "1"]
[TimeControl "5400+30"]

{[%evp 20,49,52,58,55,51,53,31,43,21,105,86,91,73,256,246,257,238,240,236,744,734,830,835,808,819,993,981,5481,523,5581,1796]} 1. e4 {[%emt 0:00:04]} c5 {[%emt 0:00:07]} 2. Nc3 {[%emt 0:00:07]} Nc6 {[%emt 0:00:23]} 3. Nge2 {[%emt 0:00:22]} g6 {[%emt 0:00:24]} 4. d4 {[%emt 0:00:33]} cxd4 {[%emt 0:00:07]} 5. Nxd4 {[%emt 0:00:06]} Bg7 {[%emt 0:00:12]} 6. Be3 {[%emt 0:00:59]} Nf6 {[%emt 0:00:49]} 7. Bc4 {[%emt 0:02:22]} O-O {[%emt 0:00:50]} 8. Bb3 {[%emt 0:00:38]} a5 {[%emt 0:00:13]} 9. O-O {[%emt 0:06:43]} a4 {[%emt 0:06:06]} 10. Nxa4 {[%emt 0:02:55]} Nxe4 {[%emt 0:01:27]} 11. Nb5 {[%emt 0:03:26]} d6 {[%emt 0:06:36]} 12. Bb6 {[%emt 0:10:11]} Qd7 {[%emt 0:00:08]} 13. Re1 {[%emt 0:03:02]} Ne5 {[%emt 0:07:59]} 14. c4 {[%emt 0:08:39][%cal Ob5c7,Bc2c4,Bc4c5][%mdl 32] aiming for Nc7!.} (14. Qe2 $5) 14... Nf6 {[%emt 0:09:16]} (14... Qf5 $11) 15. Nc7 $16 {[%emt 0:01:48]} Rb8 {[%emt 0:01:02]} 16. c5 {[%emt 0:01:14] White is more active.} Ne8 $2 {[%emt 0:06:21]} (16... Qc6 $16 {keeps fighting.}) 17. Nxe8 $18 {[%emt 0:03:53]} Rxe8 {[%emt 0:00:05]} 18. Ba7 {[%emt 0:01:36]} b5 {[%emt 0:02:43]} 19. Bxb8 {[%emt 0:03:20]} bxa4 $2 {[%emt 0:00:27]} (19... Qb7) 20. Bxa4 {[%emt 0:00:32][%cal Bb3a4,Ba4e8,Be8c6][%mdl 32]} Qb7 {[%emt 0:01:36]} 21. Bxe8 {[%emt 0:03:20]} Qxb8 {[%emt 0:00:25]} 22. Qb3 {[%emt 0:03:03]} Qa7 {[%emt 0:00:21] [#]} 23. Rxe5 $1 {[%emt 0:01:19]} dxe5 {[%emt 0:00:06]} (23... e6 24. Re4) 24. Qxf7+ {[%emt 0:00:05]} Kh8 {[%emt 0:00:06]} 25. Bc6 {[%emt 0:00:36]} 1-0

[Event "29th Bosnjaci Open 2025"]
[Site "Bosnjaci"]
[Date "2025.01.07"]
[Round "7.6"]
[White "Kovacevic, Blazimir"]
[Black "Sipic, Hrvoje"]
[Result "1/2-1/2"]
[ECO "E60"]
[WhiteElo "2379"]
[BlackElo "2213"]
[Annotator "TA"]
[PlyCount "126"]
[EventDate "2025.01.04"]
[EventType "swiss"]
[EventCountry "CRO"]
[SourceTitle "playchess.com"]
[Source "ChessBase"]
[SourceQuality "1"]
[TimeControl "5400+30"]

{[%evp 21,126,51,47,35,48,55,60,46,52,29,28,18,19,0,0,0,0,0,0,0,0,0,41,39,70,72,120,120,128,125,138,118,158,121,134,135,142,46,51,57,53,47,46,48,53,45,261,249,239,242,241,251,305,305,443,435,488,485,608,592,589,578,785,536,535,535,520,431,445,431,431,0,424,0,424,416,29984,29985,29982,1060,29971,29958,29956,29960,29959,29960,29962,29963,29962,29964,29965,29964,29964,29967,29966,29964,29968,29969,29968,29970,29969,29971,29972,29971,5206,0,1639]} 1. Nf3 {[%emt 0:00:03]} Nf6 {[%emt 0:00:29]} 2. e3 {[%emt 0:00:38]} g6 {[%emt 0:01:46]} 3. d4 {[%emt 0:01:21]} Bg7 {[%emt 0:00:28]} 4. Be2 {[%emt 0:00:05]} O-O {[%emt 0:00:50]} 5. O-O {[%emt 0:00:06]} d6 {[%emt 0:01:31]} 6. b3 {[%emt 0:01:24]} Nbd7 {[%emt 0:02:03]} 7. Bb2 {[%emt 0:00:08]} Re8 {[%emt 0:01:28]} 8. c4 {[%emt 0:01:04]} c6 {[%emt 0:03:37]} 9. Nc3 {[%emt 0:07:23]} e5 {[%emt 0:08:41]} 10. Qc2 {[%emt 0:01:53]} e4 {[%emt 0:08:06]} 11. Nd2 {[%emt 0:00:47]} Qe7 $1 {[%emt 0:00:08]} 12. b4 {[%emt 0:05:24]} Nf8 {[%emt 0:01:34]} 13. Rfb1 {[%emt 0:04:29]} Bf5 {[%emt 0:01:24]} 14. Qd1 {[%emt 0:01:50] White is slightly better.} h5 {[%emt 0:00:45]} 15. b5 {[%emt 0:02:41]} Ne6 {[%emt 0:08:28][%cal Oe6d4]} 16. bxc6 {[%emt 0:08:29]} bxc6 {[%emt 0:03:51][%cal Oe6d4]} 17. d5 {[%emt 0:00:09]} cxd5 {[%emt 0:08:52]} 18. Nxd5 {[%emt 0:00:12]} Nxd5 {[%emt 0:05:41]} 19. cxd5 {[%emt 0:00:07]} Nc5 {[%emt 0:00:12]} 20. Bxg7 {[%emt 0:13:45]} Kxg7 {[%emt 0:00:14]} 21. Nb3 {[%emt 0:00:05]} Nxb3 {[%emt 0:07:59]} 22. axb3 {[%emt 0:03:03]} a5 {[%emt 0:02:21]} 23. Qd2 {[%emt 0:06:35]} Qg5 {[%emt 0:07:19]} (23... Rec8 $142) 24. Rxa5 $16 {[%emt 0:07:32]} Rxa5 {[%emt 0:03:30]} 25. Qxa5 {[%emt 0:00:05]} Bh3 {[%emt 0:01:35]} 26. Bf1 {[%emt 0:05:01]} Re5 {[%emt 0:02:12][%cal Og5g4]} 27. Kh1 {[%emt 0:01:49]} Bg4 {[%emt 0:02:31]} 28. h3 {[%emt 0:03:46]} Be6 {[%emt 0:04:51] [#]} 29. Qc3 {[%emt 0:01:22]} (29. b4 $1 $16) 29... Bxd5 $14 {[%emt 0:01:24]} 30. b4 {[%emt 0:01:48][%cal Bb3b4,Bb4b5,Bb5b6][%mdl 32]} Qf6 {[%emt 0:00:30]} 31. Kg1 {[%emt 0:01:31]} Re8 {[%emt 0:03:22]} 32. Qd2 {[%emt 0:01:49]} Bb7 {[%emt 0:00:38]} 33. Rc1 {[%emt 0:00:57]} Rc8 $2 {[%emt 0:02:13] [#] Against Rc7. White leaves nothing to chance now.} ({Black should try} 33... Re7 $1 $14) 34. Rxc8 $1 $18 {[%emt 0:05:23]} Bxc8 {[%emt 0:00:05][%mdl 4096] Endgame. KQB-KQB} 35. b5 {[%emt 0:00:03]} Qe5 {[%emt 0:03:30]} 36. Qc2 {[%emt 0:02:16]} Bb7 {[%emt 0:02:15]} 37. Qc7 {[%emt 0:05:57]} Qd5 {[%emt 0:01:01]} (37... Ba8 $142 38. b6 Qb2 39. Qxd6 h4) 38. b6 {[%emt 0:01:56] Black must now prevent Bc4.} Ba8 {[%emt 0:01:06]} 39. Bc4 {[%emt 0:02:13]} Qd1+ {[%emt 0:00:14]} 40. Kh2 {[%emt 0:00:03]} d5 {[%emt 0:00:55]} 41. Ba6 {[%emt 0:01:34]} Qd2 {[%emt 0:00:40]} 42. b7 {[%emt 0:00:50]} Bxb7 {[%emt 0:00:08]} 43. Bxb7 {[%emt 0:00:05]} (43. Qxb7 Qxf2 44. Qxd5 Qxe3 45. Qe5+ Kh7 $16) 43... Qxf2 {[%emt 0:00:08]} 44. Qf4 {[%emt 0:03:29]} Qd2 {[%emt 0:01:06]} 45. Qe5+ {[%emt 0:00:38]} Kh7 {[%emt 0:00:23]} 46. Qf4 {[%emt 0:00:52]} (46. Bxd5 Qxe3 47. Bxf7 (47. Bxe4 Kg8 $18) 47... Qf2 $18) 46... Kg7 {[%emt 0:00:15]} 47. Qe5+ {[%emt 0:00:21]} Kh7 $1 {[%emt 0:00:27]} 48. Qxd5 {[%emt 0:00:12]} (48. Bxd5 Qxe3 49. Bxf7 (49. Bxe4 Kg8 $18) 49... Qf2 $18) 48... Qxe3 {[%emt 0:00:38]} (48... Qf2 $18 49. Qxe4 Qf6) 49. Qxf7+ {[%emt 0:00:10]} Kh6 {[%emt 0:00:20]} 50. Qf6 {[%emt 0:00:31]} (50. Qf8+ $142 Kg5 51. Qd8+ Kf5 52. Qd5+ (52. Bc8+ Ke5 $18) 52... Kf6 53. Qd6+ (53. Qxe4 Qg5 $18) 53... Kf7 54. Bd5+ Ke8 55. Qxg6+ Kd8 56. Qd6+ (56. Bxe4 Qf4+ 57. g3 Qf2+ 58. Bg2 Qe2 $18) (56. Qxe4 Qg5 $18) (56. Qxh5 Qf4+ 57. Kg1 Qc1+ 58. Kf2 e3+ 59. Kg3 e2 $18) 56... Kc8 57. Bc6 (57. Bc4 Kb7 $18)) 50... Qe1 {[%emt 0:00:56]} 51. Qh8+ {[%emt 0:00:12]} Kg5 {[%emt 0:00:10]} 52. Qe5+ {[%emt 0:00:05]} Kh6 {[%emt 0:00:22]} 53. Bxe4 {[%emt 0:00:42]} h4 {[%emt 0:00:11]} 54. Qf4+ {[%emt 0:00:11]} Kg7 {[%emt 0:00:47]} 55. Qg4 {[%emt 0:00:11]} Kf6 {[%emt 0:00:20]} 56. Qxg6+ {[%emt 0:00:33]} ({And not} 56. Bxg6 Qe5+ 57. g3 Qxg3+ 58. Qxg3 hxg3+ 59. Kh1 g2+ 60. Kg1 Kxg6 $11) 56... Ke5 {[%emt 0:00:05]} 57. Qg5+ {[%emt 0:01:27]} Ke6 {[%emt 0:00:29]} 58. Bf3 {[%emt 0:00:50]} Qf2 {[%emt 0:00:27]} 59. Qf4 {[%emt 0:01:02]} Ke7 {[%emt 0:00:14]} 60. Qe5+ {[%emt 0:00:22]} Kd7 {[%emt 0:01:16]} 61. Be4 {[%emt 0:00:33]} Kd8 {[%emt 0:00:43]} 62. Qd6+ {[%emt 0:00:14]} Kc8 {[%emt 0:00:26]} 63. Bc6 {[%emt 0:00:17] Intending Qd7+ and mate.} Qg1+ {[%emt 0:00:39][%mdl 32768] Weighted Error Value: White=0.41/Black=0.44.  Loses game:     	---       	Black=1      Mistake:       	White=1     	Black=3      Inaccurate:     	White=1     	Black=4      OK:         	White=15    	Black=14     Best:        	White=2     	Black=2      Strong:       	White=1     	Black=1     . An unexpected result.} 1/2-1/2

[Event "29th Bosnjaci Open 2025"]
[Site "Bosnjaci"]
[Date "2025.01.07"]
[Round "7.7"]
[White "Vucenovic, Damian"]
[Black "Zufic, Miroslav"]
[Result "1-0"]
[ECO "B51"]
[WhiteElo "2272"]
[BlackElo "2313"]
[Annotator "TA"]
[PlyCount "91"]
[EventDate "2025.01.04"]
[EventType "swiss"]
[EventCountry "CRO"]
[SourceTitle "playchess.com"]
[Source "ChessBase"]
[SourceQuality "1"]
[TimeControl "5400+30"]

{[%evp 9,91,41,60,57,58,52,82,82,69,72,83,56,58,34,54,15,15,12,41,-42,58,-6,0,-31,0,0,29,-8,17,28,18,8,17,12,8,14,18,0,0,0,0,0,0,0,0,0,0,0,0,0,0,0,41,0,39,60,90,79,79,79,79,79,316,322,333,319,455,453,422,393,435,432,396,395,754,751,29978,29979,29978,29979,29986,29985,29987,29988]} 1. e4 {[%emt 0:00:07]} c5 {[%emt 0:04:53]} 2. Nf3 {[%emt 0:00:19]} d6 {[%emt 0:00:11]} 3. Bb5+ {[%emt 0:00:18]} Nd7 {[%emt 0:00:02]} 4. O-O {[%emt 0:00:21]} Ngf6 {[%emt 0:00:28]} 5. Re1 {[%emt 0:00:36]} Qc7 {[%emt 0:01:04]} 6. c3 {[%emt 0:01:01]} a6 {[%emt 0:01:04]} 7. Bf1 {[%emt 0:00:25]} e5 {[%emt 0:00:43]} 8. d4 {[%emt 0:01:27]} Be7 {[%emt 0:00:11]} 9. a4 {[%emt 0:00:33]} b6 {[%emt 0:00:23]} 10. Bg5 {[%emt 0:03:10] White is more active.} O-O {[%emt 0:00:54]} 11. Nbd2 {[%emt 0:03:39]} Bb7 {[%emt 0:01:09]} 12. Bd3 {[%emt 0:02:35]} h6 {[%emt 0:00:25]} 13. Bh4 {[%emt 0:00:33]} (13. Bxf6 {simplifies} Nxf6 14. d5 Rfb8 15. Qe2) 13... Rfe8 {[%emt 0:00:10]} 14. Qb3 {[%emt 0:07:24]} ({White should try} 14. d5 $14) 14... Bc6 {[%emt 0:08:01]} (14... cxd4 $15 15. cxd4 Rab8) 15. Nf1 {[%emt 0:05:04] [#]} (15. d5 $14 Bb7 16. Nc4) 15... b5 $1 $11 {[%emt 0:01:04]} 16. d5 {[%emt 0:02:01]} (16. axb5 axb5) 16... c4 {[%emt 0:00:55]} (16... bxa4 $6 17. Qa2 Bb7 (17... Bb5 18. c4 $16) 18. Qxa4 $16) (16... Bxd5 $5 17. exd5 c4 $15) 17. Bxc4 $1 {[%emt 0:03:05]} Nc5 {[%emt 0:03:11]} (17... bxc4 18. Qxc4 g5 (18... Nxd5 $2 19. exd5 Bf8 20. dxc6 $18) 19. Bg3 $16 (19. Qxc6 Qb8 $17) (19. dxc6 gxh4 20. Nxh4 Nb6 $15)) 18. Qa2 {[%emt 0:09:44]} (18. Qc2 $5 bxc4 19. Bxf6 Bxf6 20. dxc6 $11) 18... bxc4 {[%emt 0:03:20]} 19. Bxf6 {[%emt 0:01:41]} Bxf6 {[%emt 0:01:02]} 20. dxc6 {[%emt 0:00:16]} Nb3 {[%emt 0:00:26]} 21. Rad1 {[%emt 0:00:31]} Qxc6 {[%emt 0:00:15]} 22. Ne3 {[%emt 0:03:04]} Rab8 {[%emt 0:04:38][%cal Ba8b8,Bb8b6,Bb6d6,Bd6d1][%mdl 32]} 23. Nd5 {[%emt 0:02:05]} Bd8 {[%emt 0:00:07]} 24. Nd2 {[%emt 0:01:21]} Nxd2 {[%emt 0:01:14]} 25. Rxd2 {[%emt 0:00:05]} a5 {[%emt 0:00:27] Repels Nb4} 26. Red1 {[%emt 0:03:09]} Bb6 {[%emt 0:07:21]} 27. Nxb6 {[%emt 0:10:13]} Rxb6 {[%emt 0:00:32]} 28. Rxd6 {[%emt 0:00:30]} Qxd6 {[%emt 0:00:33]} 29. Rxd6 {[%emt 0:00:03]} Rxd6 {[%emt 0:00:06][%cal Rd6d1][%mdl 4096] Endgame KQ-KRR} 30. g3 {[%emt 0:00:09]} Rd1+ {[%emt 0:00:33]} 31. Kg2 {[%emt 0:00:06]} Rb8 {[%emt 0:00:55] Hoping for ...Rb3.} 32. Qxc4 {[%emt 0:00:21]} Rxb2 {[%emt 0:00:41]} 33. Qc8+ {[%emt 0:00:09]} Kh7 {[%emt 0:00:03] [#]} 34. Qf5+ $1 {[%emt 0:00:07]} Kg8 {[%emt 0:00:16]} 35. Qxe5 {[%emt 0:00:10] Threatens to win with Qe8+.} g5 $2 {[%emt 0:02:47]} (35... Rd8 $16) 36. Qxa5 $18 {[%emt 0:04:19]} Rdd2 {[%emt 0:04:38]} 37. Qc5 {[%emt 0:01:37]} Kg7 {[%emt 0:01:06]} (37... Ra2 {keeps fighting.} 38. Qb6 h5) 38. a5 {[%emt 0:00:42]} Ra2 {[%emt 0:01:01]} 39. Qe5+ {[%emt 0:04:00]} Kg6 {[%emt 0:04:36]} 40. Qf5+ {[%emt 0:00:20]} Kg7 {[%emt 0:00:02]} 41. c4 {[%emt 0:01:13]} Rdc2 $2 {[%emt 0:02:20]} (41... Rd6 42. Qc5 Rf6) 42. e5 {[%emt 0:00:15][%cal Be4e5,Be5e6,Be6e7][%mdl 32]} Rxc4 {[%emt 0:02:08]} 43. Qf6+ {[%emt 0:00:06]} Kg8 {[%emt 0:00:12]} 44. e6 {[%emt 0:00:16]} (44. Qxh6 Rca4 45. Qxg5+ Kh7 $18) 44... Rcc2 {[%emt 0:04:28]} 45. Qxf7+ {[%emt 0:00:15]} ({And not} 45. Qxh6 Rxf2+ 46. Kg1 Rfd2 47. Qxg5+ Kf8 48. Qc5+ Kg7 49. Qg5+ Kf8 50. Qc5+ Kg7 51. Qg5+ Kf8 $11) 45... Kh8 {[%emt 0:00:01]} 46. e7 {[%emt 0:00:09]} 1-0

[Event "29th Bosnjaci Open 2025"]
[Site "Bosnjaci"]
[Date "2025.01.07"]
[Round "7.8"]
[White "Kovac, Petar"]
[Black "Berke, Ana"]
[Result "1-0"]
[ECO "D30"]
[WhiteElo "2289"]
[BlackElo "2133"]
[Annotator "TA"]
[PlyCount "61"]
[EventDate "2025.01.04"]
[EventType "swiss"]
[EventCountry "CRO"]
[SourceTitle "playchess.com"]
[Source "ChessBase"]
[SourceQuality "1"]
[TimeControl "5400+30"]

{[%evp 23,61,53,66,53,133,141,157,158,161,147,147,147,236,222,543,525,519,508,609,608,835,875,899,878,855,845,862,808,1056,1054,1340,1263,2231,2166,5135,6133,29996,29994,29997,29998]} 1. d4 {[%emt 0:00:03]} d5 {[%emt 0:01:12]} 2. Nf3 {[%emt 0:00:15]} Nf6 {[%emt 0:00:17]} 3. c4 {[%emt 0:00:05]} e6 {[%emt 0:00:07]} 4. g3 {[%emt 0:00:10]} Be7 {[%emt 0:00:11][%cal Bf8e7,Be7c5,Bc5b6][%mdl 32]} 5. Bg2 {[%emt 0:00:06]} O-O {[%emt 0:00:05]} 6. O-O {[%emt 0:00:08]} c5 {[%emt 0:00:02]} 7. cxd5 {[%emt 0:00:20]} exd5 {[%emt 0:00:13]} 8. dxc5 {[%emt 0:00:15]} Bxc5 {[%emt 0:00:15]} 9. a3 {[%emt 0:00:14]} Nc6 {[%emt 0:01:24]} 10. b4 {[%emt 0:00:14]} Bb6 {[%emt 0:00:26]} 11. Nc3 {[%emt 0:00:31]} Re8 {[%emt 0:01:45]} 12. Bb2 {[%emt 0:04:12]} Bg4 {[%emt 0:02:39]} 13. Na4 {[%emt 0:07:30]} Bxf3 {[%emt 0:02:58]} (13... Bc7 $14) 14. exf3 $16 {[%emt 0:04:19][%cal Be2f3,Bf3f4,Bf4e5][%mdl 32]} Ne5 {[%emt 0:03:47]} 15. Nxb6 {[%emt 0:07:49]} Qxb6 {[%emt 0:04:17]} 16. f4 {[%emt 0:01:24][%csl LRd5,LRe5]} Ned7 {[%emt 0:01:12]} 17. Bxd5 {[%emt 0:06:57]} Rad8 {[%emt 0:00:27]} (17... Nxd5 $16 18. Qxd5 Nf6 19. Bxf6 gxf6) 18. Bf3 {[%emt 0:11:08] This pair of bishops is nice.} Ne5 $2 {[%emt 0:07:58]} (18... Ne4 {is tougher.}) 19. fxe5 $18 {[%emt 0:00:16]} Rxd1 {[%emt 0:01:29]} 20. Raxd1 {[%emt 0:00:15]} Qe6 {[%emt 0:05:09][%cal Oe6b3] Black is weak on the dark squares} 21. exf6 {[%emt 0:00:54]} Qb3 {[%emt 0:01:48] [#]} 22. Rfe1 $1 {[%emt 0:00:38]} ({Weaker is} 22. Bxb7 Qxb2 23. Rd7 Qxa3 $14) 22... Rb8 {[%emt 0:07:47]} 23. Be5 {[%emt 0:00:44]} gxf6 {[%emt 0:01:13]} 24. Bxb8 {[%emt 0:00:08]} Qxf3 {[%emt 0:00:05]} 25. Bf4 {[%emt 0:03:57]} Kg7 {[%emt 0:00:08] Prevents Bh6+.} 26. Rd7 {[%emt 0:01:27]} h5 {[%emt 0:00:33]} 27. h4 {[%emt 0:00:14]} Kg6 {[%emt 0:00:22]} 28. Rd6 {[%emt 0:02:09] Threatens to win with Re7.} Qxa3 {[%emt 0:00:36]} 29. Be5 {[%emt 0:00:29]} Kf5 {[%emt 0:00:14]} 30. Rxf6+ {[%emt 0:00:09]} Kg4 {[%emt 0:00:07]} 31. Kg2 {[%emt 0:00:08]} 1-0

[Event "29th Bosnjaci Open 2025"]
[Site "Bosnjaci"]
[Date "2025.01.07"]
[Round "7.10"]
[White "Faukovic, Matija"]
[Black "Franc, Borna"]
[Result "0-1"]
[ECO "D35"]
[WhiteElo "2107"]
[BlackElo "2287"]
[Annotator "TA"]
[PlyCount "106"]
[EventDate "2025.01.04"]
[EventType "swiss"]
[EventCountry "CRO"]
[SourceTitle "playchess.com"]
[Source "ChessBase"]
[SourceQuality "1"]
[TimeControl "5400+30"]

{[%evp 18,106,10,10,-5,-117,-103,-106,-106,-177,-163,-165,-150,-154,-147,-147,-119,-122,-122,-110,-109,-131,-125,-125,-124,-128,-115,-125,-115,-117,-101,-112,-101,-170,-170,-170,-139,-180,-178,-190,-190,-208,-181,-207,-207,-263,-257,-252,-258,-253,-258,-315,-343,-454,-429,-456,-456,-469,-468,-464,-443,-408,-376,-536,-522,-514,-458,-1360,-1327,-1631,-694,-729,-560,-744,-727,-999,-958,-937,-931,-1217,-1222,-1175,-972,-1175,-1141,-1060,-772,-29983,-29984,-29987,-29979]} 1. d4 {[%emt 0:02:22]} Nf6 {[%emt 0:00:35]} 2. Bg5 {[%emt 0:01:00]} d5 {[%emt 0:00:26]} 3. Bxf6 {[%emt 0:00:10]} gxf6 {[%emt 0:00:30]} 4. c4 {[%emt 0:00:06]} c6 {[%emt 0:02:26]} 5. e3 {[%emt 0:04:06]} Bf5 {[%emt 0:02:47]} 6. Nc3 {[%emt 0:01:40]} e6 {[%emt 0:03:13]} 7. Qb3 {[%emt 0:14:08]} Qb6 {[%emt 0:01:46]} 8. Qxb6 {[%emt 0:04:14]} axb6 {[%emt 0:00:05]} 9. cxd5 {[%emt 0:00:05]} exd5 {[%emt 0:00:19]} 10. Nf3 {[%emt 0:14:44]} b5 {[%emt 0:02:36]} 11. Bxb5 {[%emt 0:17:57]} cxb5 $17 {[%emt 0:02:08]} 12. Nxd5 {[%emt 0:00:05][%cal Of3h4] [#] Threatens to win with Nh4!} Kd8 {[%emt 0:00:41] Black is better.} 13. O-O {[%emt 0:09:02]} (13. Nxf6 $17 {was necessary.} Nd7 14. Nh5) 13... Nd7 $19 {[%emt 0:10:22]} 14. a3 {[%emt 0:10:23]} Rc8 {[%emt 0:04:35]} 15. Rfc1 {[%emt 0:00:59]} Rxc1+ {[%emt 0:02:44]} 16. Rxc1 {[%emt 0:00:01]} Be4 {[%emt 0:03:03]} 17. Nc3 {[%emt 0:02:12][%csl LRb5,LRe4]} Bxf3 {[%emt 0:00:37]} 18. gxf3 {[%emt 0:00:02]} Rg8+ {[%emt 0:00:00]} 19. Kf1 {[%emt 0:00:09]} Rg5 {[%emt 0:01:10]} 20. Ne4 {[%emt 0:01:56]} Rh5 {[%emt 0:00:48]} 21. Kg2 {[%emt 0:00:04]} b4 {[%emt 0:01:27]} 22. a4 {[%emt 0:00:58]} Ra5 {[%emt 0:02:19]} 23. b3 {[%emt 0:00:16]} Ra6 {[%emt 0:00:16]} 24. f4 {[%emt 0:01:25]} Nb8 {[%emt 0:08:49]} 25. Nd2 {[%emt 0:03:32]} (25. Kf3 $17 {might work better.}) 25... Nc6 {[%emt 0:08:55]} 26. Nc4 {[%emt 0:04:55]} f5 {[%emt 0:01:45]} 27. Kf3 {[%emt 0:00:50]} Na5 {[%emt 0:00:35]} 28. Nxa5 {[%emt 0:01:43]} Rxa5 {[%emt 0:00:24][%mdl 4096] Endgame. KRB-KR} 29. Rc2 {[%emt 0:00:14]} Kd7 {[%emt 0:00:21]} 30. Ke2 {[%emt 0:00:14]} Ra6 {[%emt 0:00:04]} 31. Kd3 {[%emt 0:00:25]} Rh6 {[%emt 0:01:12]} 32. f3 {[%emt 0:00:07]} Rh3 {[%emt 0:00:36]} 33. Rf2 {[%emt 0:00:16]} Be7 {[%emt 0:00:04]} 34. Kc4 {[%emt 0:00:11]} Bh4 {[%emt 0:00:30]} 35. Re2 {[%emt 0:00:32]} Rxf3 {[%emt 0:00:09]} 36. Kxb4 {[%emt 0:01:03]} Bf2 {[%emt 0:00:54]} 37. Kc4 {[%emt 0:02:42]} Bxe3 {[%emt 0:00:08]} (37... Rxe3 $2 {loses.} 38. Rxf2 Re1 39. Kc5 $18) 38. b4 {[%emt 0:00:11]} Bxf4 {[%emt 0:00:14]} 39. a5 {[%emt 0:00:20]} Bc7 {[%emt 0:00:19]} 40. Rg2 {[%emt 0:00:46]} (40. Ra2 $142) 40... Rf1 {[%emt 0:02:00]} 41. Rg7 {[%emt 0:00:16]} Ke7 {[%emt 0:00:04] [#] ...f4 is the strong threat.} 42. Rg8 {[%emt 0:00:33]} (42. Rxh7 $142 Rc1+ 43. Kd3) 42... f4 {[%emt 0:00:13] aiming for ...f3.} 43. Rc8 {[%emt 0:00:24]} Bd6 {[%emt 0:00:04] White must now prevent ...Rc1+.} 44. Kd5 {[%emt 0:01:31]} Kd7 {[%emt 0:02:37]} 45. Rc2 {[%emt 0:00:26]} Rb1 {[%emt 0:00:21]} 46. a6 {[%emt 0:00:34]} bxa6 {[%emt 0:00:06]} 47. Ra2 {[%emt 0:00:04]} Rxb4 {[%emt 0:00:11]} 48. Rxa6 {[%emt 0:00:04]} Rb5+ {[%emt 0:00:10]} 49. Ke4 {[%emt 0:00:35]} f5+ {[%emt 0:00:06]} 50. Kd3 {[%emt 0:00:07]} f3 {[%emt 0:00:54] And now ...Rb3+ would win.} 51. Ra7+ {[%emt 0:00:39]} Ke6 {[%emt 0:00:16]} 52. Rxh7 {[%emt 0:00:09]} Rb3+ {[%emt 0:00:03]} 53. Kd2 {[%emt 0:00:11]} Bf4+ {[%emt 0:00:11] Weighted Error Value: White=0.57/Black=0.24 (precise) .  Mistake:       	White=5     	---        Inaccurate:     	White=2     	---        OK:         	White=12    	Black=18     Best:        	---       	Black=2} 0-1